fUST/lending_fUST_20240114
["ID","MTS","AMOUNT","RATE_DAILY","PERIOD"]
[311493900,1705163440019,-500.0,0.00028413,2]
[311493903,1705163440029,-500.0,0.00028413,2]
[311493907,1705163440038,-500.0,0.00028413,2]
[311493911,1705163440046,-500.0,0.00028413,2]
[311493913,1705163440055,-500.0,0.00028413,2]
[311493917,1705163440065,-500.0,0.00028413,2]
[311493919,1705163440074,-500.0,0.00028413,2]
[311493921,1705163440083,-500.0,0.00028413,2]
[311493922,1705163440092,-513.05940313,0.00028413,2]
[311493923,1705163440101,-500.0,0.00028413,2]
[311493924,1705163440110,-566.02763612,0.00028413,2]
[311493925,1705163440119,-500.0,0.00028413,2]
[311493926,1705163440128,-500.0,0.00028413,2]
[311493927,1705163440137,-500.0,0.00028413,2]
[311493929,1705163440146,-500.0,0.00028413,2]
[311493931,1705163440155,-4790.35,0.00028413,2]
[311493933,1705163440164,-500.0,0.00028413,2]
[311493935,1705163440173,-195.44382773,0.00028413,2]
[311493937,1705163440182,-500.0,0.00028413,2]
[311493939,1705163440192,-500.0,0.00028413,2]
[311493941,1705163440201,-500.0,0.00028413,2]
[311493943,1705163440211,-500.0,0.00028413,2]
[311493945,1705163440223,-500.0,0.00028416,2]
[311493947,1705163440232,-500.0,0.00028416,2]
[311493949,1705163440241,-501.97119656,0.00028416,2]
[311493951,1705163440250,-505.75645169,0.00028416,2]
[311493952,1705163440262,-500.0,0.00028416,2]
[311493955,1705163440271,-500.0,0.00028416,2]
[311493957,1705163440280,-429.10453152,0.00028416,2]
[311493959,1705163440289,-500.0,0.00028416,2]
[311493961,1705163440299,-500.0,0.00028416,2]
[311493963,1705163440309,-500.0,0.00028416,2]
[311493965,1705163440318,-630.89137763,0.00028416,2]
[311493966,1705163440328,-500.0,0.00028444,2]
[311493969,1705163440338,-332.5,0.00028444,2]
[311493971,1705163440346,-304.72,0.00028444,2]
[311493973,1705163440355,-500.0,0.00028444,2]
[311493975,1705163440365,-500.0,0.00028444,2]
[311493977,1705163440374,-500.0,0.00028444,2]
[311493979,1705163440384,-535.62,0.00028444,2]
[311493981,1705163440392,-500.0,0.00028444,2]
[311493982,1705163440401,-500.0,0.00028444,2]
[311493984,1705163440410,-500.0,0.00028444,2]
[311493986,1705163440419,-500.0,0.00028444,2]
[311493988,1705163440429,-1147.73,0.00028493,2]
[311493991,1705163440439,-500.0,0.00028493,2]
[311493993,1705163440449,-1442.87,0.00028493,2]
[311493994,1705163440459,-500.0,0.00028493,2]
[311493997,1705163440469,-500.0,0.00028516,2]
[311493998,1705163440479,-503.54307067,0.00028516,2]
[311494000,1705163440488,-500.0,0.00028516,2]
[311494003,1705163440497,-505.95577879,0.00028516,2]
[311494005,1705163440507,-504.56591296,0.00028516,2]
[311494007,1705163440516,-505.76809498,0.00028516,2]
[311494009,1705163440526,-500.0,0.00028516,2]
[311494011,1705163440536,-500.0,0.00028516,2]
[311494013,1705163440545,-500.0,0.00028516,2]
[311494015,1705163440554,-502.83618034,0.00028516,2]
[311494016,1705163440564,-500.0,0.00028516,2]
[311494019,1705163440574,-500.0,0.00028516,2]
[311494021,1705163440583,-500.0,0.00028516,2]
[311494023,1705163440592,-500.0,0.00028516,2]
[311494025,1705163440601,-500.0,0.00028516,2]
[311494027,1705163440610,-500.0,0.00028516,2]
[311494028,1705163440619,-500.0,0.00028516,2]
[311494031,1705163440628,-504.55971881,0.00028516,2]
[311494032,1705163440637,-500.0,0.00028516,2]
[311494035,1705163440647,-503.35556638,0.00028516,2]
[311494037,1705163440656,-186.92796824,0.00028516,2]
[311494039,1705163440665,-500.0,0.00028516,2]
[311494041,1705163440674,-503.34624185,0.00028516,2]
[311494043,1705163440684,-500.0,0.00028516,2]
[311494045,1705163440693,-574.14828934,0.00028516,2]
[311494047,1705163440703,-500.0,0.00028516,2]
[311494049,1705163440712,-500.0,0.00028516,2]
[311494051,1705163440721,-500.0,0.00028516,2]
[311494052,1705163440729,-502.63221027,0.00028516,2]
[311494054,1705163440739,-338.37665592,0.00028516,2]
[311494056,1705163440748,-500.0,0.00028516,2]
[311494059,1705163440758,-504.18316493,0.00028516,2]
[311494061,1705163440767,-500.0,0.00028516,2]
[311494063,1705163440777,-500.0,0.00028516,2]
[311494065,1705163440786,-500.0,0.00028516,2]
[311494067,1705163440795,-500.0,0.00028516,2]
[311494068,1705163440804,-507.22407258,0.00028516,2]
[311494071,1705163440813,-506.75849904,0.00028516,2]
[311494073,1705163440823,-500.0,0.00028516,2]
[311494074,1705163440833,-500.0,0.00028516,2]
[311494077,1705163440842,-40941.03680897,0.00028555,2]
[311494079,1705163440851,-242.64861,0.00028555,2]
[311494090,1705163440944,-242.64861,0.00028555,2]
[311494092,1705163440954,-500.0,0.00028687,2]
[311494094,1705163440963,-314.62,0.00028687,2]
[311494096,1705163440972,-500.0,0.00028687,2]
[311494098,1705163440981,-505.16,0.00028687,2]
[311494100,1705163440990,-500.0,0.00028687,2]
[311494102,1705163441000,-500.0,0.00028687,2]
[311494105,1705163441009,-2240.37520876,0.00028687,2]
[311494107,1705163441024,-2549.97479124,0.00028687,2]
[311494109,1705163441033,-500.0,0.00028687,2]
[311494111,1705163441042,-465.1,0.00028687,2]
[311494113,1705163441051,-500.0,0.0002869,2]
[311494115,1705163441060,-500.0,0.00028718,2]
[311494117,1705163441069,-596.62,0.00028718,2]
[311494119,1705163441077,-224.56,0.00028718,2]
[311494121,1705163441087,-500.0,0.00028718,2]
[311494123,1705163441096,-500.0,0.00028718,2]
[311494125,1705163441105,-500.0,0.00028718,2]
[311494127,1705163441115,-500.0,0.00028718,2]
[311494129,1705163441124,-604.04,0.00028718,2]
[311494131,1705163441133,-1147.73,0.00028767,2]
[311494133,1705163441141,-500.0,0.00028767,2]
[311494135,1705163441150,-1442.87,0.00028767,2]
[311494137,1705163441159,-500.0,0.00028767,2]
[311494139,1705163441168,-500.0,0.0002879,2]
[311494141,1705163441179,-583.66,0.0002879,2]
[311494143,1705163441187,-500.0,0.0002879,2]
[311494145,1705163441196,-500.0,0.0002879,2]
[311494147,1705163441205,-500.0,0.00028961,2]
[311494149,1705163441217,-500.0,0.00028961,2]
[311494151,1705163441226,-202.44,0.00028961,2]
[311494153,1705163441235,-318.82,0.00028961,2]
[311494155,1705163441244,-4790.35,0.00028961,2]
[311494157,1705163441253,-500.0,0.00028961,2]
[311494159,1705163441262,-500.0,0.00028964,2]
[311494161,1705163441271,-500.0,0.00028992,2]
[311494163,1705163441280,-500.0,0.00028992,2]
[311494165,1705163441290,-500.0,0.00028992,2]
[311494167,1705163441299,-500.0,0.00028992,2]
[311494169,1705163441308,-500.0,0.00028992,2]
[311494171,1705163441317,-2304.81104845,0.00029,2]
[311494173,1705163441326,-1147.73,0.00029041,2]
[311494175,1705163441335,-500.0,0.00029041,2]
[311494177,1705163441345,-1442.87,0.00029041,2]
[311494179,1705163441354,-500.0,0.00029041,2]
[311494181,1705163441363,-500.0,0.00029064,2]
[311494183,1705163441371,-500.0,0.00029064,2]
[311494185,1705163441380,-321.2,0.00029064,2]
[311494187,1705163441389,-500.0,0.00029235,2]
[311494189,1705163441398,-500.0,0.00029235,2]
[311494191,1705163441408,-4790.35,0.00029235,2]
[311494193,1705163441417,-620.58,0.00029235,2]
[311494195,1705163441426,-242.64861,0.00029237,2]
[311494197,1705163441442,-242.64861,0.00029237,2]
[311494199,1705163441453,-500.0,0.00029238,2]
[311494201,1705163441463,-465.89342091,0.00029266,2]
[311494204,1705163441475,-34.10657909,0.00029266,2]
[311494206,1705163441484,-500.0,0.00029266,2]
[311494208,1705163441493,-500.0,0.00029266,2]
[311494210,1705163441502,-500.0,0.00029266,2]
[311494212,1705163441512,-500.0,0.00029266,2]
[311494214,1705163441521,-1147.73,0.00029315,2]
[311494216,1705163441531,-500.0,0.00029315,2]
[311494218,1705163441540,-1442.87,0.00029315,2]
[311494220,1705163441549,-500.0,0.00029315,2]
[311494222,1705163441559,-298.44,0.00029338,2]
[311494224,1705163441568,-151.46,0.00029338,2]
[311494226,1705163441577,-757.37002996,0.00029407,2]
[311494228,1705163441586,-318.31642972,0.00029407,2]
[311494230,1705163441596,-261.68032612,0.00029407,2]
[311494232,1705163441604,-187.5,0.00029407,2]
[311494234,1705163441613,-222.62867831,0.00029409,2]
[311494236,1705163441622,-500.0,0.00029509,2]
[311494238,1705163441631,-500.0,0.00029509,2]
[311494240,1705163441640,-4790.35,0.00029509,2]
[311494242,1705163441649,-500.0,0.00029512,2]
[311494244,1705163441658,-500.0,0.00029539,2]
[311494246,1705163441667,-500.0,0.00029539,2]
[311494248,1705163441676,-500.0,0.00029539,2]
[311494250,1705163441688,-500.0,0.00029539,2]
[311494252,1705163441697,-158.5,0.00029539,2]
[311494254,1705163441706,-1147.73,0.00029589,2]
[311494256,1705163441715,-500.0,0.00029589,2]
[311494258,1705163441724,-1442.87,0.00029589,2]
[311494260,1705163441733,-326.9,0.00029589,2]
[311494262,1705163441742,-500.0,0.00029783,2]
[311494264,1705163441751,-500.0,0.00029783,2]
[311494266,1705163441761,-4790.35,0.00029783,2]
[311494268,1705163441771,-610.46,0.00029786,2]
[311494270,1705163441779,-173.62782152,0.0002979,3]
[311494272,1705163441789,-500.0,0.00029813,2]
[311494274,1705163441798,-500.0,0.00029813,2]
[311494276,1705163441807,-500.0,0.00029813,2]
[311494278,1705163441816,-500.0,0.00029813,2]
[311494280,1705163441825,-1147.73,0.00029863,2]
[311494282,1705163441835,-500.0,0.00029863,2]
[311494284,1705163441846,-1442.87,0.00029863,2]
[311494286,1705163441855,-687.47415465,0.00029999,2]
[311494288,1705163441864,-6272.88389819,0.0003,2]
[311494290,1705163441874,-463.25005188,0.0003,4]
[311494292,1705163441883,-194.94913572,0.0003,4]
[311494294,1705163441893,-4999.99,0.0003,2]
[311494296,1705163441902,-155.01550155,0.0003,4]
[311494298,1705163441911,-4999.99,0.0003,2]
[311494300,1705163441920,-5000.0,0.0003,2]
[311494302,1705163441930,-5000.0,0.0003,2]
[311494304,1705163441939,-5000.0,0.0003,2]
[311494306,1705163441948,-5000.0,0.0003,2]
[311494308,1705163441957,-5000.0,0.0003,2]
[311494310,1705163441966,-1079.24,0.0003,2]
[311494312,1705163441975,-1546.34,0.0003,2]
[311494314,1705163441984,-2152.44432093,0.0003,4]
[311494316,1705163441993,-687.09987426,0.0003,4]
[311494318,1705163442003,-1195.65005694,0.0003,4]
[311494320,1705163442012,-242.64861,0.0003,2]
[311494322,1705163442021,-242.64861,0.0003,2]
[311494324,1705163442031,-15890.88559666,0.0003,2]
[311494326,1705163442040,-500.0,0.0003,3]
[311494328,1705163442049,-1500.0,0.0003,2]
[311494330,1705163442058,-208.0,0.0003,2]
[311494332,1705163442067,-500.01998,0.00030057,2]
[311494334,1705163442076,-500.0,0.00030057,2]
[311494336,1705163442084,-3439.40650009,0.00030057,2]
[311494421,1705163442784,-947.21,0.00028403,3]
[311494423,1705163442794,-500.0,0.00029588,2]
[311494425,1705163442803,-500.0,0.00029588,2]
[311494427,1705163442812,-500.0,0.00029588,2]
[311494428,1705163442821,-334.50251997,0.00029588,2]
[311494430,1705163442831,-500.0,0.00029588,2]
[311494433,1705163442841,-500.0,0.00029588,2]
[311494434,1705163442850,-500.0,0.00029588,2]
[311494436,1705163442859,-500.0,0.00029588,2]
[311494438,1705163442870,-500.0,0.00029588,2]
[311494440,1705163442879,-256.99324914,0.00029588,2]
[311494442,1705163442889,-500.0,0.00029588,2]
[311494444,1705163442898,-500.0,0.00029588,2]
[311494446,1705163442906,-500.0,0.00029588,2]
[311494448,1705163442915,-500.0,0.00029588,2]
[311494450,1705163442924,-198.72071988,0.00029588,2]
[311494452,1705163442938,-220.57754319,0.00029588,2]
[311494454,1705163442946,-500.0,0.00029588,2]
[311494456,1705163442955,-500.0,0.00029588,2]
[311494458,1705163442964,-500.0,0.00029588,2]
[311494460,1705163442974,-500.0,0.00029588,2]
[311494462,1705163442983,-49.65341062,0.00029588,2]
[311494509,1705163443409,-2035.80105868,0.00028402,2]
[311494511,1705163443418,-450.34658938,0.00029588,2]
[311494513,1705163443427,-123.85235185,0.00029588,2]
[311494515,1705163443441,-302.69233507,0.00029588,2]
[311494517,1705163443451,-500.0,0.00029588,2]
[311494519,1705163443460,-485.74274844,0.00029588,2]
[311494521,1705163443469,-500.0,0.00029588,2]
[311494523,1705163443478,-500.0,0.00029588,2]
[311494525,1705163443487,-500.0,0.00029588,2]
[311494527,1705163443495,-500.0,0.00029588,2]
[311494529,1705163443504,-500.0,0.00029588,2]
[311494531,1705163443513,-457.93838649,0.00029588,2]
[311494533,1705163443525,-42.06161351,0.00029588,2]
[311494535,1705163443534,-500.0,0.00029588,2]
[311494537,1705163443543,-500.0,0.00029588,2]
[311494539,1705163443552,-235.77427025,0.00029588,2]
[311494541,1705163443563,-264.22572975,0.00029588,2]
[311494543,1705163443573,-500.0,0.00029588,2]
[311494545,1705163443582,-500.0,0.00029588,2]
[311494547,1705163443591,-500.0,0.00029588,2]
[311494549,1705163443600,-500.0,0.00029588,2]
[311494551,1705163443609,-500.0,0.00029588,2]
[311494553,1705163443620,-500.0,0.00029588,2]
[311494555,1705163443630,-85.77427525,0.00029588,2]
[311494791,1705163446042,-500.0,0.00027397,2]
[311494793,1705163446051,-492.91744012,0.00028402,2]
[311494795,1705163446060,-976.44607626,0.00028402,2]
[311494797,1705163446069,-521.54784729,0.00028402,2]
[311494799,1705163446079,-177.996225,0.00028402,2]
[311494801,1705163446088,-414.22572475,0.00029588,2]
[311494803,1705163446097,-500.0,0.00029588,2]
[311494805,1705163446106,-500.0,0.00029588,2]
[311494807,1705163446115,-206.13604525,0.00029588,2]
[311494809,1705163446124,-500.0,0.00029588,2]
[311494811,1705163446133,-500.0,0.00029588,2]
[311494813,1705163446142,-500.0,0.00029588,2]
[311494815,1705163446151,-500.0,0.00029588,2]
[311494817,1705163446160,-500.0,0.00029588,2]
[311494819,1705163446169,-500.0,0.00029588,2]
[311494821,1705163446179,-500.0,0.00029588,2]
[311494823,1705163446189,-500.0,0.00029588,2]
[311494825,1705163446198,-500.0,0.00029588,2]
[311494827,1705163446207,-500.0,0.00029588,2]
[311494829,1705163446216,-1350.94349991,0.00030057,2]
[311494831,1705163446227,-242.64861,0.00030058,2]
[311494832,1705163446239,-277.36,0.00030087,2]
[311494834,1705163446249,-500.0,0.00030087,2]
[311494836,1705163446259,-500.0,0.00030087,2]
[311494838,1705163446268,-150.0,0.00030136,2]
[311494840,1705163446278,-150.0,0.00030136,2]
[311494842,1705163446288,-150.0,0.00030136,2]
[311494844,1705163446296,-150.0,0.00030136,2]
[311494846,1705163446306,-150.0,0.00030136,2]
[311494848,1705163446315,-150.0,0.00030136,2]
[311494850,1705163446324,-150.0,0.00030136,2]
[311494852,1705163446333,-1147.73,0.00030136,2]
[311494854,1705163446343,-500.0,0.00030136,2]
[311494856,1705163446352,-1442.87,0.00030136,2]
[311494858,1705163446361,-150.0,0.0003016,2]
[311494860,1705163446369,-500.0,0.00030331,2]
[311494862,1705163446378,-4790.35,0.00030331,2]
[311494863,1705163446391,-500.0,0.00030361,2]
[311494865,1705163446400,-500.0,0.00030361,2]
[311494867,1705163446409,-156.64783064,0.00030384,7]
[311494869,1705163446419,-1147.73,0.0003041,2]
[311494871,1705163446427,-500.0,0.0003041,2]
[311494872,1705163446437,-1442.87,0.0003041,2]
[311494873,1705163446446,-150.0,0.00030434,2]
[311494874,1705163446455,-500.0,0.00030605,2]
[311494875,1705163446463,-4790.35,0.00030605,2]
[311494876,1705163446472,-500.0,0.00030635,2]
[311494877,1705163446481,-244.02,0.00030635,2]
[311494878,1705163446490,-369.21009529,0.00030653,2]
[311494879,1705163446499,-237.0,0.0003066,30]
[311494880,1705163446507,-152.0,0.0003066,30]
[311494881,1705163446516,-237.0,0.0003067,30]
[311494882,1705163446524,-152.0,0.0003067,30]
[311494883,1705163446533,-237.0,0.0003068,30]
[311494884,1705163446542,-152.0,0.0003068,30]
[311494885,1705163446550,-1147.73,0.00030684,2]
[311494886,1705163446559,-500.0,0.00030684,2]
[311494887,1705163446567,-1442.87,0.00030684,2]
[311494888,1705163446576,-242.64861,0.00030688,2]
[311494889,1705163446585,-16826.94186939,0.00030688,4]
[311494890,1705163446594,-150.0,0.00030708,2]
[311494891,1705163446603,-300.0,0.000308,15]
[311494892,1705163446612,-155.66933742,0.00030841,4]
[311494893,1705163446621,-500.0,0.00030879,2]
[311494894,1705163446630,-4790.35,0.00030879,2]
[311494895,1705163446639,-489.25,0.00030909,2]
[311494896,1705163446648,-1147.73,0.00030958,2]
[311494897,1705163446657,-500.0,0.00030958,2]
[311494898,1705163446665,-1442.87,0.00030958,2]
[311494899,1705163446674,-155.49314008,0.00030967,2]
[311494900,1705163446684,-1842.0,0.0003097,30]
[311494901,1705163446692,-150.5,0.0003097,30]
[311494902,1705163446701,-150.5,0.0003097,30]
[311494903,1705163446710,-1842.0,0.0003098,30]
[311494904,1705163446718,-150.5,0.0003098,30]
[311494905,1705163446727,-150.5,0.0003098,30]
[311494906,1705163446736,-150.0,0.00030982,2]
[311494907,1705163446745,-1842.0,0.0003099,30]
[311494909,1705163446755,-150.5,0.0003099,30]
[311494911,1705163446764,-150.5,0.0003099,30]
[311494913,1705163446772,-242.64861,0.00030996,2]
[311494915,1705163446781,-242.64861,0.00030996,2]
[311494917,1705163446790,-400.8343683,0.00030996,4]
[311494919,1705163446798,-1240.12646753,0.00030996,4]
[311494921,1705163446807,-260.34948307,0.00030996,4]
[311494923,1705163446816,-876.73665189,0.00030996,4]
[311494925,1705163446825,-155.87638516,0.00030996,4]
[311494927,1705163446833,-587.15396194,0.00030996,4]
[311494928,1705163446842,-400.09836622,0.00030996,4]
[311494931,1705163446852,-155.01550155,0.00030996,4]
[311494932,1705163446861,-155.31506109,0.00030996,2]
[311494934,1705163446871,-155.19153985,0.00030996,2]
[311494936,1705163446880,-2676.40309316,0.00030996,4]
[311494938,1705163446889,-155.68129638,0.00030996,4]
[311494940,1705163446899,-180.19693883,0.00030996,4]
[311494942,1705163446908,-242.63833742,0.00030996,4]
[311494944,1705163446918,-10724.62519669,0.00030996,4]
[311494946,1705163446927,-155.35370352,0.00030996,4]
[311494948,1705163446936,-155.16367244,0.00030996,4]
[311494950,1705163446946,-614.43219439,0.00030996,4]
[311494951,1705163446955,-229.13208191,0.00030996,4]
[311494952,1705163446964,-155.0151673,0.00030996,4]
[311494953,1705163446973,-643.07386759,0.00030996,4]
[311494954,1705163446982,-174.89741352,0.00030996,4]
[311494955,1705163446991,-184.66296864,0.00030996,4]
[311494956,1705163447000,-277.56750127,0.00030996,4]
[311494957,1705163447010,-157.08092043,0.00030996,4]
[311494958,1705163447019,-8501.53206913,0.00030996,4]
[311494959,1705163447028,-266.15999762,0.00030996,2]
[311494960,1705163447037,-238.38294085,0.00030996,4]
[311494961,1705163447046,-155.01550155,0.00030996,4]
[311494962,1705163447056,-469.71701685,0.00030996,2]
[311494963,1705163447065,-229.67219546,0.00030996,4]
[311494964,1705163447074,-180.77973209,0.00030996,4]
[311494965,1705163447083,-175.52177777,0.00030996,4]
[311494966,1705163447092,-594.07215949,0.00030996,4]
[311494967,1705163447101,-155.05966163,0.00030996,4]
[311494968,1705163447110,-265.66183442,0.00030996,4]
[311494969,1705163447118,-281.7555391,0.00030996,4]
[311494970,1705163447128,-213.19734832,0.00030996,4]
[311494971,1705163447136,-242.64861,0.00030997,2]
[311494972,1705163447145,-7945.04739538,0.00030997,2]
[311494973,1705163447153,-2263.06859118,0.00030997,4]
[311494974,1705163447162,-4710.25616836,0.00030998,3]
[311494975,1705163447170,-155.01550155,0.00030998,4]
[311494976,1705163447179,-156.83353696,0.00030998,4]
[311494977,1705163447188,-166.65114347,0.00030998,4]
[311494978,1705163447197,-155.60842389,0.00030998,4]
[311494979,1705163447206,-155.15508995,0.00030998,4]
[311494980,1705163447215,-282.575543,0.00030998,4]
[311494981,1705163447226,-181.83649281,0.00030998,4]
[311494982,1705163447237,-322.90358594,0.00030998,4]
[311494983,1705163447245,-154.98450155,0.00030998,4]
[311494984,1705163447254,-901.83243089,0.00030998,4]
[311494985,1705163447263,-155.16423546,0.00030998,4]
[311494986,1705163447271,-20865.20196494,0.00030998,2]
[311494987,1705163447280,-525.71054623,0.00030998,4]
[311494988,1705163447289,-155.01550155,0.00030998,4]
[311494989,1705163447297,-2030.38673937,0.00030998,4]
[311494990,1705163447307,-155.02170304,0.00030998,4]
[311494991,1705163447316,-322.47705028,0.00030998,4]
[311494992,1705163447326,-155.24156521,0.00030998,4]
[311494994,1705163447336,-19663.58309656,0.00030998,4]
[311494996,1705163447346,-1030.79768525,0.00030998,4]
[311494998,1705163447355,-242.64861,0.00030998,2]
[311495000,1705163447364,-500.0,0.00030999,4]
[311495002,1705163447374,-500.0,0.00030999,4]
[311495004,1705163447383,-575.39902395,0.00030999,4]
[311495006,1705163447391,-403.88142101,0.00030999,4]
[311495007,1705163447404,-500.0,0.00030999,4]
[311495009,1705163447413,-500.0,0.00030999,4]
[311495011,1705163447422,-500.0,0.00030999,4]
[311495012,1705163447431,-359.04300206,0.00030999,4]
[311495014,1705163447441,-496.02282265,0.00030999,4]
[311495021,1705163447527,-500.0,0.00030999,4]
[311495023,1705163447536,-418.37121975,0.00030999,4]
[311495025,1705163447545,-345.23941436,0.00030999,4]
[311495026,1705163447554,-308336.14200238,0.00031,3]
[311495028,1705163447567,-14218.45271505,0.00031,3]
[311495603,1705164632249,-705.96,0.00022265,3]
[311495605,1705164632258,-260.43027978,0.00022271,2]
[311495607,1705164632269,-1291.57807305,0.00022271,2]
[311495609,1705164632278,-36905.76332305,0.00022271,2]
[311495611,1705164632287,-7990.7979956,0.00022271,2]
[311495613,1705164632296,-976.44607626,0.00022272,2]
[311495615,1705164632305,-6515.73664025,0.00022272,2]
[311495618,1705164632314,-154.9690062,0.00022273,4]
[311495621,1705164632324,-154.9690062,0.00022273,2]
[311495624,1705164632333,-1576.73391587,0.00022273,2]
[311495627,1705164632342,-2455.35365603,0.00022274,2]
[311495748,1705164638330,-1061.90415234,0.00022274,2]
[311496052,1705164641238,-222.57911411,0.00022274,2]
[311496054,1705164641249,-1780.04959201,0.00022275,2]
[311496056,1705164641261,-2253.16926498,0.00022275,2]
[311496073,1705164641412,-757.57389458,0.00022275,2]
[311496075,1705164641421,-6371.31502716,0.00022275,2]
[311496250,1705164643181,-154.9690062,0.00022273,2]
[311496252,1705164643191,-7327.17034024,0.00022275,2]
[311496254,1705164643200,-8658.6299821,0.00022276,2]
[311496256,1705164643210,-3849.07707113,0.0002258,5]
[311496258,1705164643221,-1150.92292887,0.00022812,2]
[311496260,1705164643230,-444.25,0.00023259,3]
[311496262,1705164643240,-847.15,0.00023259,3]
[311496265,1705164643252,-2154.00972604,0.00023278,2]
[311496267,1705164643261,-264.020091,0.00023299,2]
[311496269,1705164643272,-154.21250895,0.00024206,2]
[311496271,1705164643282,-24900.0,0.00024318,2]
[311496273,1705164643291,-1694.17346883,0.00026376,2]
[311496275,1705164643301,-588.3,0.00027387,3]
[311496277,1705164643311,-500.0,0.00027397,2]
[311496280,1705164643326,-500.0,0.00027397,2]
[311496282,1705164643342,-500.0,0.00027397,2]
[311496284,1705164643350,-500.0,0.00027397,2]
[311496286,1705164643360,-500.0,0.00027397,2]
[311496288,1705164643370,-500.0,0.00027397,2]
[311496290,1705164643380,-500.0,0.00027397,2]
[311496292,1705164643390,-500.0,0.00027397,2]
[311496294,1705164643401,-500.0,0.00027397,2]
[311496296,1705164643411,-500.0,0.00027397,2]
[311496298,1705164643421,-500.0,0.00027397,2]
[311496300,1705164643430,-500.0,0.00027397,2]
[311496302,1705164643440,-500.0,0.00027397,2]
[311496304,1705164643450,-500.0,0.00027397,2]
[311496306,1705164643459,-500.0,0.00027397,2]
[311496308,1705164643468,-503.44639681,0.00027397,2]
[311496310,1705164643478,-500.0,0.00027397,2]
[311496312,1705164643487,-500.0,0.00027397,2]
[311496314,1705164643495,-500.0,0.00027397,2]
[311496316,1705164643507,-500.0,0.00027397,2]
[311496318,1705164643518,-500.0,0.00027397,2]
[311496320,1705164643527,-549.77918226,0.00027397,2]
[311496322,1705164643536,-500.0,0.00027397,2]
[311496324,1705164643545,-500.0,0.00027397,2]
[311496326,1705164643555,-500.0,0.00027397,2]
[311496328,1705164643564,-500.0,0.00027397,2]
[311496330,1705164643573,-500.0,0.00027397,2]
[311496332,1705164643582,-500.0,0.00027397,2]
[311496334,1705164643592,-500.0,0.00027397,2]
[311496336,1705164643602,-500.0,0.00027397,2]
[311496338,1705164643611,-576.23004699,0.00027397,2]
[311496340,1705164643621,-500.0,0.00027397,2]
[311496342,1705164643630,-500.0,0.00027397,2]
[311496344,1705164643639,-500.0,0.00027397,2]
[311496346,1705164643649,-500.0,0.00027397,2]
[311496348,1705164643658,-500.0,0.00027397,2]
[311496350,1705164643669,-500.0,0.00027397,2]
[311496361,1705164643809,-502.55761513,0.00027397,2]
[311496363,1705164643818,-623.36,0.00027397,2]
[311496365,1705164643828,-208.7901987,0.00027397,2]
[311496367,1705164643837,-500.0,0.00027397,2]
[311496369,1705164643846,-500.0,0.00027397,2]
[311496371,1705164643855,-500.0,0.00027397,2]
[311496373,1705164643864,-500.0,0.00027397,2]
[311496375,1705164643874,-500.0,0.00027397,2]
[311496378,1705164643884,-512.24310383,0.00027397,2]
[311496380,1705164643893,-500.0,0.00027397,2]
[311496382,1705164643905,-500.0,0.00027397,2]
[311496384,1705164643914,-500.0,0.00027397,2]
[311496385,1705164643923,-500.0,0.00027397,2]
[311496387,1705164643932,-500.0,0.00027397,2]
[311496389,1705164643943,-500.0,0.00027397,2]